[Event "Titled Tuesday Blitz July 05 Early 2022"]
[White "Maksimovic, Bojan"]
[Black "Taspinar, Yanki"]
[WhiteFideId "14408120"]
[BlackFideId "34561188"]
[WhiteElo "2453"]
[BlackElo "1549"]
[Result "1-0"]
[Round "06"]
[TimeControl "180+1"]
[Date "2022.07.05"]
[WhiteClock "0:00:06"]
[BlackClock "0:00:02"]

1. e4 {[%clk 0:03:00]}  e5 {[%clk 0:02:59]} 2. Nf3 {[%clk 0:03:00]}  Nc6 {[%clk 0:03:00]} 3. Bb5 {[%clk 0:03:00]}  a6 {[%clk 0:03:00]} 4. Ba4 {[%clk 0:03:00]}  Nf6 {[%clk 0:03:00]} 5. O-O {[%clk 0:03:00]}  Be7 {[%clk 0:02:59]} 6. Re1 {[%clk 0:03:00]}  b5 {[%clk 0:02:58]} 7. Bb3 {[%clk 0:03:00]}  O-O {[%clk 0:02:59]} 8. a4 {[%clk 0:03:00]}  Rb8 {[%clk 0:02:57]} 9. d3 {[%clk 0:02:58]}  Bb7 {[%clk 0:02:56]} 10. Nbd2 {[%clk 0:02:53]}  Re8 {[%clk 0:02:54]} 11. Nf1 {[%clk 0:02:48]}  h6 {[%clk 0:02:53]} 12. axb5 {[%clk 0:02:43]}  axb5 {[%clk 0:02:52]} 13. Ng3 {[%clk 0:02:44]}  Bf8 {[%clk 0:02:52]} 14. Bd2 {[%clk 0:02:41]}  d5 {[%clk 0:02:50]} 15. exd5 {[%clk 0:02:24]}  Nxd5 {[%clk 0:02:51]} 16. Ne4 {[%clk 0:02:24]}  Nd4 {[%clk 0:01:50]} 17. Nxd4 {[%clk 0:02:21]}  exd4 {[%clk 0:01:51]} 18. Qh5 {[%clk 0:02:21]}  Re6 {[%clk 0:01:39]} 19. Ng3 {[%clk 0:02:11]}  Rg6 {[%clk 0:01:36]} 20. Re5 {[%clk 0:02:03]}  c6 {[%clk 0:01:34]} 21. Rae1 {[%clk 0:01:56]}  Qd7 {[%clk 0:01:34]} 22. Qf5 {[%clk 0:01:39]}  Qxf5 {[%clk 0:01:03]} 23. Nxf5 {[%clk 0:01:40]}  Rf6 {[%clk 0:01:03]} 24. Bxd5 {[%clk 0:01:26]}  cxd5 {[%clk 0:01:03]} 25. Nxd4 {[%clk 0:01:26]}  Bc5 {[%clk 0:01:01]} 26. Nf3 {[%clk 0:01:12]}  Kh7 {[%clk 0:00:51]} 27. h3 {[%clk 0:01:01]}  Ra8 {[%clk 0:00:50]} 28. Bc3 {[%clk 0:00:59]}  Ra2 {[%clk 0:00:41]} 29. R5e2 {[%clk 0:00:37]}  Rg6 {[%clk 0:00:29]} 30. Bd4 {[%clk 0:00:34]}  Bxd4 {[%clk 0:00:27]} 31. Nxd4 {[%clk 0:00:35]}  Rxb2 {[%clk 0:00:27]} 32. Re7 {[%clk 0:00:35]}  Bc8 {[%clk 0:00:25]} 33. Rxf7 {[%clk 0:00:21]}  Bxh3 {[%clk 0:00:25]} 34. g3 {[%clk 0:00:21]}  Rb4 {[%clk 0:00:22]} 35. Rf4 {[%clk 0:00:21]}  Ra4 {[%clk 0:00:20]} 36. Re5 {[%clk 0:00:20]}  Bg4 {[%clk 0:00:17]} 37. Kg2 {[%clk 0:00:17]}  b4 {[%clk 0:00:15]} 38. Rxd5 {[%clk 0:00:09]}  Ra2 {[%clk 0:00:14]} 39. Rc5 {[%clk 0:00:08]}  Bd1 {[%clk 0:00:12]} 40. Rc4 {[%clk 0:00:07]}  Rb6 {[%clk 0:00:12]} 41. Nf5 {[%clk 0:00:04]}  Bxc2 {[%clk 0:00:09]} 42. Rxb4 {[%clk 0:00:03]}  Rxb4 {[%clk 0:00:09]} 43. Rxb4 {[%clk 0:00:04]}  Bxd3 {[%clk 0:00:10]} 44. Ne3 {[%clk 0:00:04]}  Ra7 {[%clk 0:00:07]} 45. Rd4 {[%clk 0:00:05]}  Ba6 {[%clk 0:00:07]} 46. g4 {[%clk 0:00:05]}  Bb7+ {[%clk 0:00:07]} 47. Kg3 {[%clk 0:00:05]}  Ra3 {[%clk 0:00:06]} 48. Rb4 {[%clk 0:00:05]}  Bc8 {[%clk 0:00:06]} 49. Rc4 {[%clk 0:00:05]}  Be6 {[%clk 0:00:06]} 50. Rc6 {[%clk 0:00:06]}  Bf7 {[%clk 0:00:06]} 51. Rc7 {[%clk 0:00:07]}  Kg8 {[%clk 0:00:06]} 52. Rc8+ {[%clk 0:00:07]}  Kh7 {[%clk 0:00:06]} 53. Rf8 {[%clk 0:00:07]}  Be6 {[%clk 0:00:06]} 54. Rf4 {[%clk 0:00:08]}  Ra1 {[%clk 0:00:05]} 55. Re4 {[%clk 0:00:08]}  Bf7 {[%clk 0:00:05]} 56. Re7 {[%clk 0:00:08]}  Bg6 {[%clk 0:00:05]} 57. Nd5 {[%clk 0:00:07]}  Rg1+ {[%clk 0:00:05]} 58. Kf4 {[%clk 0:00:07]}  Kg8 {[%clk 0:00:06]} 59. Rc7 {[%clk 0:00:06]}  Bf7 {[%clk 0:00:05]} 60. Ne7+ {[%clk 0:00:05]}  Kf8 {[%clk 0:00:05]} 61. Nf5 {[%clk 0:00:05]}  Kg8 {[%clk 0:00:05]} 62. Nd6 {[%clk 0:00:02]}  Be6 {[%clk 0:00:05]} 63. Ne8 {[%clk 0:00:02]}  Rxg4+ {[%clk 0:00:04]} 64. Ke5 {[%clk 0:00:02]}  Bf7 {[%clk 0:00:04]} 65. Nd6 {[%clk 0:00:03]}  Bg6 {[%clk 0:00:05]} 66. f4 {[%clk 0:00:02]}  Rg1 {[%clk 0:00:03]} 67. f5 {[%clk 0:00:03]}  Bh5 {[%clk 0:00:03]} 68. Rc8+ {[%clk 0:00:03]}  Kh7 {[%clk 0:00:03]} 69. Kf4 {[%clk 0:00:03]}  Rg5 {[%clk 0:00:03]} 70. Ne4 {[%clk 0:00:03]}  Rg4+ {[%clk 0:00:03]} 71. Ke5 {[%clk 0:00:04]}  Rg1 {[%clk 0:00:03]} 72. Rc7 {[%clk 0:00:04]}  Kg8 {[%clk 0:00:02]} 73. f6 {[%clk 0:00:05]}  Rf1 {[%clk 0:00:01]} 74. Rxg7+ {[%clk 0:00:04]}  Kf8 {[%clk 0:00:02]} 75. Rh7 {[%clk 0:00:05]}  Bg6 {[%clk 0:00:02]} 76. Rh8+ {[%clk 0:00:05]}  Kf7 {[%clk 0:00:02]} 77. Nd6# {[%clk 0:00:06]} 1-0


[Site "https://www.chess.com"]

[Event "Titled Tuesday Blitz July 05 Early 2022"]
[White "Martinez Alcantara, Jose Eduardo"]
[Black "Kadric, Denis"]
[WhiteFideId "3805662"]
[BlackFideId "14403803"]
[WhiteElo "2703"]
[BlackElo "2657"]
[Result "1-0"]
[Round "06"]
[TimeControl "180+1"]
[Date "2022.07.05"]
[WhiteClock "0:00:07"]
[BlackClock "0:00:09"]

1. e4 {[%clk 0:03:00]}  d6 {[%clk 0:03:00]} 2. d4 {[%clk 0:02:59]}  Nf6 {[%clk 0:03:01]} 3. Nc3 {[%clk 0:02:59]}  e5 {[%clk 0:03:01]} 4. Nge2 {[%clk 0:02:58]}  Nbd7 {[%clk 0:03:02]} 5. g3 {[%clk 0:02:58]}  c6 {[%clk 0:03:01]} 6. Bg2 {[%clk 0:02:58]}  Be7 {[%clk 0:03:01]} 7. O-O {[%clk 0:02:59]}  O-O {[%clk 0:03:02]} 8. a4 {[%clk 0:02:59]}  b6 {[%clk 0:03:02]} 9. d5 {[%clk 0:02:59]}  Bb7 {[%clk 0:03:00]} 10. dxc6 {[%clk 0:02:58]}  Bxc6 {[%clk 0:03:01]} 11. Be3 {[%clk 0:02:56]}  a6 {[%clk 0:02:59]} 12. Nd5 {[%clk 0:02:49]}  Nc5 {[%clk 0:02:21]} 13. Nec3 {[%clk 0:02:37]}  Nxd5 {[%clk 0:02:21]} 14. Nxd5 {[%clk 0:02:22]}  Nxa4 {[%clk 0:02:15]} 15. Rxa4 {[%clk 0:02:21]}  Bxa4 {[%clk 0:02:15]} 16. Nxb6 {[%clk 0:02:14]}  Bb5 {[%clk 0:02:09]} 17. c4 {[%clk 0:02:14]}  Rb8 {[%clk 0:02:08]} 18. cxb5 {[%clk 0:02:14]}  Rxb6 {[%clk 0:02:09]} 19. Bxb6 {[%clk 0:02:13]}  Qxb6 {[%clk 0:02:10]} 20. bxa6 {[%clk 0:02:13]}  Qxa6 {[%clk 0:02:10]} 21. Qd2 {[%clk 0:01:52]}  Rb8 {[%clk 0:02:09]} 22. Rc1 {[%clk 0:01:35]}  Qa2 {[%clk 0:02:03]} 23. Rc2 {[%clk 0:01:20]}  h6 {[%clk 0:01:55]} 24. h4 {[%clk 0:01:17]}  Bf8 {[%clk 0:01:33]} 25. h5 {[%clk 0:01:14]}  Rb4 {[%clk 0:01:33]} 26. Qe2 {[%clk 0:01:08]}  Rd4 {[%clk 0:01:27]} 27. Bf3 {[%clk 0:01:06]}  Qb3 {[%clk 0:01:08]} 28. Rc3 {[%clk 0:00:55]}  Qb4 {[%clk 0:00:59]} 29. Qc2 {[%clk 0:00:34]}  Qa4 {[%clk 0:00:52]} 30. b3 {[%clk 0:00:28]}  Qa1+ {[%clk 0:00:51]} 31. Kg2 {[%clk 0:00:27]}  Qe1 {[%clk 0:00:51]} 32. Re3 {[%clk 0:00:18]}  Rd2 {[%clk 0:00:29]} 33. Rxe1 {[%clk 0:00:18]}  Rxc2 {[%clk 0:00:30]} 34. Be2 {[%clk 0:00:11]}  Be7 {[%clk 0:00:26]} 35. Bd3 {[%clk 0:00:08]}  Rb2 {[%clk 0:00:24]} 36. Bc4 {[%clk 0:00:07]}  Bd8 {[%clk 0:00:24]} 37. Re3 {[%clk 0:00:08]}  Kf8 {[%clk 0:00:22]} 38. Rf3 {[%clk 0:00:06]}  f6 {[%clk 0:00:22]} 39. Rd3 {[%clk 0:00:04]}  Ke7 {[%clk 0:00:21]} 40. Rd5 {[%clk 0:00:03]}  Bb6 {[%clk 0:00:21]} 41. Rb5 {[%clk 0:00:04]}  Bc7 {[%clk 0:00:08]} 42. Rb7 {[%clk 0:00:05]}  Kd7 {[%clk 0:00:09]} 43. Ra7 {[%clk 0:00:04]}  Kc8 {[%clk 0:00:07]} 44. Ra8+ {[%clk 0:00:04]}  Bb8 {[%clk 0:00:08]} 45. Be6+ {[%clk 0:00:04]}  Kb7 {[%clk 0:00:08]} 46. Bd5+ {[%clk 0:00:04]}  Kc7 {[%clk 0:00:08]} 47. Ra4 {[%clk 0:00:05]}  Kc8 {[%clk 0:00:08]} 48. Rc4+ {[%clk 0:00:06]}  Kd7 {[%clk 0:00:08]} 49. Rb4 {[%clk 0:00:06]}  Kc7 {[%clk 0:00:08]} 50. Rb7+ {[%clk 0:00:06]}  Kc8 {[%clk 0:00:09]} 51. Rxg7 {[%clk 0:00:07]} 1-0


[Site "https://www.chess.com"]

[Event "Titled Tuesday Blitz July 05 Early 2022"]
[White "Maximov, Dmitry"]
[Black "Shimanov, Aleksandr"]
[WhiteFideId "14105659"]
[BlackFideId "4198603"]
[WhiteElo "2494"]
[BlackElo "2605"]
[Result "1-0"]
[Round "06"]
[TimeControl "180+1"]
[Date "2022.07.05"]
[WhiteClock "0:00:11"]
[BlackClock "0:00:06"]

1. e4 {[%clk 0:03:00]}  e6 {[%clk 0:02:57]} 2. d4 {[%clk 0:03:00]}  d5 {[%clk 0:02:56]} 3. e5 {[%clk 0:03:00]}  c5 {[%clk 0:02:55]} 4. c3 {[%clk 0:03:01]}  Qa5 {[%clk 0:02:56]} 5. dxc5 {[%clk 0:02:58]}  Qc7 {[%clk 0:02:54]} 6. Nf3 {[%clk 0:02:56]}  Bxc5 {[%clk 0:02:53]} 7. Bd3 {[%clk 0:02:56]}  Nc6 {[%clk 0:02:54]} 8. Qe2 {[%clk 0:02:53]}  Nge7 {[%clk 0:02:54]} 9. O-O {[%clk 0:02:44]}  Ng6 {[%clk 0:02:44]} 10. Re1 {[%clk 0:02:40]}  O-O {[%clk 0:02:42]} 11. b4 {[%clk 0:02:36]}  Bb6 {[%clk 0:02:35]} 12. a4 {[%clk 0:02:33]}  a6 {[%clk 0:02:27]} 13. Ra2 {[%clk 0:02:01]}  Bd7 {[%clk 0:02:14]} 14. h4 {[%clk 0:02:01]}  f5 {[%clk 0:02:07]} 15. h5 {[%clk 0:01:52]}  Nh8 {[%clk 0:02:06]} 16. Bf4 {[%clk 0:01:50]}  Nf7 {[%clk 0:02:02]} 17. Nbd2 {[%clk 0:01:48]}  Qd8 {[%clk 0:01:48]} 18. Rb2 {[%clk 0:01:33]}  Rc8 {[%clk 0:01:37]} 19. Nb3 {[%clk 0:01:16]}  g5 {[%clk 0:01:24]} 20. hxg6 {[%clk 0:01:11]}  hxg6 {[%clk 0:01:25]} 21. Qd2 {[%clk 0:01:07]}  Kg7 {[%clk 0:01:24]} 22. g3 {[%clk 0:01:00]}  Rh8 {[%clk 0:01:23]} 23. Kg2 {[%clk 0:00:59]}  Rh5 {[%clk 0:01:14]} 24. a5 {[%clk 0:00:57]}  Ba7 {[%clk 0:01:13]} 25. c4 {[%clk 0:00:33]}  Ne7 {[%clk 0:00:33]} 26. c5 {[%clk 0:00:29]}  Nc6 {[%clk 0:00:31]} 27. Nbd4 {[%clk 0:00:27]}  g5 {[%clk 0:00:29]} 28. Bxf5 {[%clk 0:00:26]}  exf5 {[%clk 0:00:20]} 29. e6 {[%clk 0:00:24]}  gxf4 {[%clk 0:00:20]} 30. Qxf4 {[%clk 0:00:19]}  Qf6 {[%clk 0:00:16]} 31. exd7 {[%clk 0:00:18]}  Rd8 {[%clk 0:00:16]} 32. Re6 {[%clk 0:00:19]}  Bb8 {[%clk 0:00:10]} 33. Qd2 {[%clk 0:00:15]}  Nxd4 {[%clk 0:00:10]} 34. Rxf6 {[%clk 0:00:14]}  Nxf3 {[%clk 0:00:10]} 35. Rxf7+ {[%clk 0:00:13]}  Kxf7 {[%clk 0:00:10]} 36. Qxd5+ {[%clk 0:00:13]}  Kg7 {[%clk 0:00:10]} 37. Qxf3 {[%clk 0:00:13]}  Rh7 {[%clk 0:00:09]} 38. Qxb7 {[%clk 0:00:13]}  Kf6 {[%clk 0:00:07]} 39. c6 {[%clk 0:00:13]}  Rdh8 {[%clk 0:00:07]} 40. c7 {[%clk 0:00:13]}  Bxc7 {[%clk 0:00:06]} 41. Qxc7 {[%clk 0:00:13]}  f4 {[%clk 0:00:06]} 42. Qd6+ {[%clk 0:00:13]}  Kf5 {[%clk 0:00:07]} 43. Qxf4+ {[%clk 0:00:12]}  Ke6 {[%clk 0:00:07]} 44. Rd2 {[%clk 0:00:11]}  Rf7 {[%clk 0:00:06]} 45. Qd6+ {[%clk 0:00:10]}  Kf5 {[%clk 0:00:06]} 46. Rd5+ {[%clk 0:00:10]}  Kg4 {[%clk 0:00:06]} 47. Qg6# {[%clk 0:00:11]} 1-0


[Site "https://www.chess.com"]

[Event "Titled Tuesday Blitz July 05 Early 2022"]
[White "Mitrabha, Guha"]
[Black "Deac, Bogdan-Daniel"]
[WhiteFideId "5057000"]
[BlackFideId "1226380"]
[WhiteElo "2499"]
[BlackElo "2648"]
[Result "0-1"]
[Round "06"]
[TimeControl "180+1"]
[Date "2022.07.05"]
[WhiteClock "0:00:04"]
[BlackClock "0:00:04"]

1. d4 {[%clk 0:03:00]}  Nf6 {[%clk 0:03:00]} 2. Nf3 {[%clk 0:02:59]}  d5 {[%clk 0:02:59]} 3. c4 {[%clk 0:02:58]}  e6 {[%clk 0:02:59]} 4. g3 {[%clk 0:02:56]}  dxc4 {[%clk 0:02:59]} 5. Bg2 {[%clk 0:02:55]}  Bd7 {[%clk 0:03:00]} 6. O-O {[%clk 0:02:51]}  Bc6 {[%clk 0:03:00]} 7. Qc2 {[%clk 0:02:46]}  b5 {[%clk 0:02:59]} 8. a4 {[%clk 0:02:44]}  a6 {[%clk 0:02:47]} 9. axb5 {[%clk 0:02:08]}  axb5 {[%clk 0:02:46]} 10. Rxa8 {[%clk 0:02:09]}  Bxa8 {[%clk 0:02:46]} 11. Nc3 {[%clk 0:02:07]}  c6 {[%clk 0:02:46]} 12. e4 {[%clk 0:02:07]}  Be7 {[%clk 0:02:44]} 13. Rd1 {[%clk 0:01:59]}  O-O {[%clk 0:02:41]} 14. Bf4 {[%clk 0:01:53]}  Nbd7 {[%clk 0:02:38]} 15. d5 {[%clk 0:01:44]}  cxd5 {[%clk 0:02:20]} 16. Ne5 {[%clk 0:01:28]}  b4 {[%clk 0:01:42]} 17. exd5 {[%clk 0:00:50]}  bxc3 {[%clk 0:01:40]} 18. Nc6 {[%clk 0:00:41]}  Qe8 {[%clk 0:01:18]} 19. dxe6 {[%clk 0:00:32]}  Bxc6 {[%clk 0:00:53]} 20. Bxc6 {[%clk 0:00:20]}  fxe6 {[%clk 0:00:52]} 21. Qxc3 {[%clk 0:00:20]}  Qc8 {[%clk 0:00:25]} 22. Qxc4 {[%clk 0:00:18]}  Nb6 {[%clk 0:00:24]} 23. Qb5 {[%clk 0:00:16]}  Nbd5 {[%clk 0:00:24]} 24. Be5 {[%clk 0:00:15]}  h6 {[%clk 0:00:16]} 25. h3 {[%clk 0:00:10]}  Kh8 {[%clk 0:00:13]} 26. b3 {[%clk 0:00:07]}  Ne4 {[%clk 0:00:06]} 27. Rf1 {[%clk 0:00:02]}  Nec3 {[%clk 0:00:04]} 28. Qc4 {[%clk 0:00:01]}  Bf6 {[%clk 0:00:03]} 29. Bxf6 {[%clk 0:00:01]}  gxf6 {[%clk 0:00:03]} 30. Bxd5 {[%clk 0:00:02]}  Nxd5 {[%clk 0:00:04]} 31. Qh4 {[%clk 0:00:03]}  Kg7 {[%clk 0:00:04]} 32. Re1 {[%clk 0:00:04]}  e5 {[%clk 0:00:03]} 33. Qe4 {[%clk 0:00:04]}  Ne7 {[%clk 0:00:04]} 34. Rd1 {[%clk 0:00:05]}  Qxh3 {[%clk 0:00:04]} 35. Qb7 {[%clk 0:00:04]}  Qe6 {[%clk 0:00:04]} 36. Rd7 {[%clk 0:00:05]}  Rf7 {[%clk 0:00:05]} 37. b4 {[%clk 0:00:05]}  Nf5 {[%clk 0:00:05]} 38. Rxf7+ {[%clk 0:00:06]}  Qxf7 {[%clk 0:00:06]} 39. Qc8 {[%clk 0:00:06]}  Nd4 {[%clk 0:00:05]} 40. Qg4+ {[%clk 0:00:05]}  Kh7 {[%clk 0:00:06]} 41. Qe4+ {[%clk 0:00:05]}  Kg7 {[%clk 0:00:06]} 42. Qg4+ {[%clk 0:00:05]}  Kf8 {[%clk 0:00:06]} 43. Qc8+ {[%clk 0:00:06]}  Qe8 {[%clk 0:00:06]} 44. Qc7 {[%clk 0:00:05]}  Qc6 {[%clk 0:00:05]} 45. Qh7 {[%clk 0:00:06]}  Qc1+ {[%clk 0:00:05]} 46. Kg2 {[%clk 0:00:06]}  Qc6+ {[%clk 0:00:05]} 47. Kg1 {[%clk 0:00:06]}  f5 {[%clk 0:00:05]} 48. Qh8+ {[%clk 0:00:06]}  Kf7 {[%clk 0:00:06]} 49. Qh7+ {[%clk 0:00:07]}  Ke8 {[%clk 0:00:06]} 50. Qh8+ {[%clk 0:00:07]}  Kd7 {[%clk 0:00:06]} 51. Qg7+ {[%clk 0:00:07]}  Kc8 {[%clk 0:00:06]} 52. Kh2 {[%clk 0:00:07]}  Nf3+ {[%clk 0:00:06]} 53. Kh3 {[%clk 0:00:05]}  Ng5+ {[%clk 0:00:05]} 54. Kh2 {[%clk 0:00:05]}  Qf3 {[%clk 0:00:04]} 55. Qf8+ {[%clk 0:00:05]}  Kd7 {[%clk 0:00:04]} 56. Qc5 {[%clk 0:00:03]}  Qh5+ {[%clk 0:00:04]} 57. Kg2 {[%clk 0:00:03]}  Qf3+ {[%clk 0:00:04]} 58. Kh2 {[%clk 0:00:03]}  Qh5+ {[%clk 0:00:03]} 59. Kg1 {[%clk 0:00:03]}  Nf3+ {[%clk 0:00:03]} 60. Kg2 {[%clk 0:00:03]}  Ne1+ {[%clk 0:00:03]} 61. Kf1 {[%clk 0:00:04]}  Qh1+ {[%clk 0:00:02]} 62. Ke2 {[%clk 0:00:04]}  Qe4+ {[%clk 0:00:03]} 63. Kf1 {[%clk 0:00:05]}  Nf3 {[%clk 0:00:03]} 64. Qb5+ {[%clk 0:00:05]}  Ke7 {[%clk 0:00:03]} 65. Qc5+ {[%clk 0:00:04]}  Kf7 {[%clk 0:00:03]} 66. Qc7+ {[%clk 0:00:05]}  Kg6 {[%clk 0:00:04]} 67. Qd6+ {[%clk 0:00:05]}  Kh5 {[%clk 0:00:04]} 68. Qd7 {[%clk 0:00:04]}  Ng5 {[%clk 0:00:03]} 69. Qd1+ {[%clk 0:00:03]}  Qf3 {[%clk 0:00:02]} 70. Qd7 {[%clk 0:00:03]}  Kg4 {[%clk 0:00:02]} 71. b5 {[%clk 0:00:03]}  Qh1+ {[%clk 0:00:02]} 72. Ke2 {[%clk 0:00:04]}  Qe4+ {[%clk 0:00:03]} 73. Kf1 {[%clk 0:00:04]}  Qb1+ {[%clk 0:00:03]} 74. Kg2 {[%clk 0:00:05]}  Qe4+ {[%clk 0:00:03]} 75. Kf1 {[%clk 0:00:05]}  Kh3 {[%clk 0:00:04]} 76. b6 {[%clk 0:00:04]}  Qb1+ {[%clk 0:00:04]} 77. Ke2 {[%clk 0:00:05]}  Qxb6 {[%clk 0:00:03]} 78. Qxf5+ {[%clk 0:00:05]}  Kh2 {[%clk 0:00:04]} 79. Qg4 {[%clk 0:00:05]}  Qb2+ {[%clk 0:00:04]} 80. Ke3 {[%clk 0:00:05]}  Qc3+ {[%clk 0:00:04]} 81. Ke2 {[%clk 0:00:05]}  Kg1 {[%clk 0:00:04]} 82. f4 {[%clk 0:00:05]}  Qc2+ {[%clk 0:00:04]} 83. Ke3 {[%clk 0:00:05]}  Qe4+ {[%clk 0:00:04]} 84. Kd2 {[%clk 0:00:05]}  Nf3+ {[%clk 0:00:05]} 85. Kd1 {[%clk 0:00:05]}  Qd3+ {[%clk 0:00:04]} 86. Kc1 {[%clk 0:00:05]}  e4 {[%clk 0:00:05]} 87. f5 {[%clk 0:00:04]}  Qd2+ {[%clk 0:00:05]} 88. Kb1 {[%clk 0:00:04]}  Qd3+ {[%clk 0:00:05]} 89. Kc1 {[%clk 0:00:05]}  Nd4 {[%clk 0:00:05]} 90. Kb2 {[%clk 0:00:04]}  Qb3+ {[%clk 0:00:04]} 0-1


[Site "https://www.chess.com"]

[Event "Titled Tuesday Blitz July 05 Early 2022"]
[White "Naroditsky, Daniel"]
[Black "Svane, Frederik"]
[WhiteFideId "2026961"]
[BlackFideId "12923044"]
[WhiteElo "2608"]
[BlackElo "2459"]
[Result "1/2-1/2"]
[Round "06"]
[TimeControl "180+1"]
[Date "2022.07.05"]
[WhiteClock "0:00:06"]
[BlackClock "0:00:13"]

1. c4 {[%clk 0:03:00]}  e6 {[%clk 0:02:59]} 2. Nc3 {[%clk 0:03:00]}  Nf6 {[%clk 0:02:57]} 3. d4 {[%clk 0:02:59]}  Bb4 {[%clk 0:02:57]} 4. f3 {[%clk 0:02:59]}  c5 {[%clk 0:02:56]} 5. d5 {[%clk 0:03:00]}  b5 {[%clk 0:02:57]} 6. e4 {[%clk 0:03:00]}  d6 {[%clk 0:02:57]} 7. Ne2 {[%clk 0:03:00]}  bxc4 {[%clk 0:02:53]} 8. Nf4 {[%clk 0:03:01]}  g5 {[%clk 0:02:53]} 9. Ne2 {[%clk 0:02:58]}  exd5 {[%clk 0:02:54]} 10. exd5 {[%clk 0:02:56]}  Qe7 {[%clk 0:02:54]} 11. Bxg5 {[%clk 0:02:53]}  Bxc3+ {[%clk 0:02:48]} 12. bxc3 {[%clk 0:02:53]}  Nbd7 {[%clk 0:02:47]} 13. Qa4 {[%clk 0:02:33]}  Rb8 {[%clk 0:02:28]} 14. Qxc4 {[%clk 0:02:01]}  Kd8 {[%clk 0:02:19]} 15. Kf2 {[%clk 0:01:50]}  Rg8 {[%clk 0:01:20]} 16. Bd2 {[%clk 0:00:52]}  Rb2 {[%clk 0:01:14]} 17. Bf4 {[%clk 0:00:30]}  Ne5 {[%clk 0:01:12]} 18. Bxe5 {[%clk 0:00:28]}  Qxe5 {[%clk 0:01:13]} 19. Rd1 {[%clk 0:00:23]}  Re8 {[%clk 0:01:03]} 20. g3 {[%clk 0:00:14]}  Qe3+ {[%clk 0:00:46]} 21. Kg2 {[%clk 0:00:14]}  Rxe2+ {[%clk 0:00:37]} 22. Qxe2 {[%clk 0:00:15]}  Qxe2+ {[%clk 0:00:38]} 23. Bxe2 {[%clk 0:00:16]}  Rxe2+ {[%clk 0:00:38]} 24. Kg1 {[%clk 0:00:16]}  Rxa2 {[%clk 0:00:39]} 25. h4 {[%clk 0:00:17]}  Nh5 {[%clk 0:00:37]} 26. Rh2 {[%clk 0:00:17]}  Ra3 {[%clk 0:00:36]} 27. Re1 {[%clk 0:00:06]}  Rxc3 {[%clk 0:00:32]} 28. Rhe2 {[%clk 0:00:07]}  Bd7 {[%clk 0:00:28]} 29. Ra2 {[%clk 0:00:07]}  Rxf3 {[%clk 0:00:24]} 30. Rxa7 {[%clk 0:00:07]}  Rxg3+ {[%clk 0:00:24]} 31. Kf2 {[%clk 0:00:08]}  Rb3 {[%clk 0:00:16]} 32. Ra8+ {[%clk 0:00:06]}  Kc7 {[%clk 0:00:16]} 33. Re7 {[%clk 0:00:06]}  Nf6 {[%clk 0:00:17]} 34. Rxf7 {[%clk 0:00:07]}  Ng4+ {[%clk 0:00:15]} 35. Ke2 {[%clk 0:00:07]}  Ne5 {[%clk 0:00:16]} 36. Rxh7 {[%clk 0:00:07]}  Rh3 {[%clk 0:00:15]} 37. Ra7+ {[%clk 0:00:05]}  Kb6 {[%clk 0:00:14]} 38. Raxd7 {[%clk 0:00:06]}  Nxd7 {[%clk 0:00:15]} 39. Rxd7 {[%clk 0:00:07]}  c4 {[%clk 0:00:11]} 40. Rxd6+ {[%clk 0:00:06]}  Kc5 {[%clk 0:00:12]} 41. Rd8 {[%clk 0:00:06]}  Rxh4 {[%clk 0:00:11]} 42. d6 {[%clk 0:00:07]}  Rd4 {[%clk 0:00:11]} 43. d7 {[%clk 0:00:07]}  Kc6 {[%clk 0:00:11]} 44. Ke3 {[%clk 0:00:05]}  Rxd7 {[%clk 0:00:11]} 45. Rxd7 {[%clk 0:00:05]}  Kxd7 {[%clk 0:00:12]} 46. Kd4 {[%clk 0:00:05]}  c3 {[%clk 0:00:13]} 47. Kxc3 {[%clk 0:00:06]} 1/2-1/2


[Site "https://www.chess.com"]

[Event "Titled Tuesday Blitz July 05 Early 2022"]
[White "Paichadze, Luka"]
[Black "So, Wesley"]
[WhiteFideId "13602934"]
[BlackFideId "5202213"]
[WhiteElo "2537"]
[BlackElo "2763"]
[Result "0-1"]
[Round "06"]
[TimeControl "180+1"]
[Date "2022.07.05"]
[WhiteClock "0:00:03"]
[BlackClock "0:00:53"]

1. e4 {[%clk 0:03:00]}  c5 {[%clk 0:02:59]} 2. Nf3 {[%clk 0:02:57]}  d6 {[%clk 0:02:59]} 3. d4 {[%clk 0:02:57]}  cxd4 {[%clk 0:03:00]} 4. Qxd4 {[%clk 0:02:58]}  Nc6 {[%clk 0:02:56]} 5. Bb5 {[%clk 0:02:57]}  Bd7 {[%clk 0:02:56]} 6. Qd3 {[%clk 0:02:51]}  Nf6 {[%clk 0:02:53]} 7. c4 {[%clk 0:02:44]}  g6 {[%clk 0:02:47]} 8. Nc3 {[%clk 0:02:42]}  Bg7 {[%clk 0:02:47]} 9. h3 {[%clk 0:02:38]}  O-O {[%clk 0:02:46]} 10. O-O {[%clk 0:02:37]}  Rc8 {[%clk 0:02:43]} 11. Bxc6 {[%clk 0:02:23]}  Bxc6 {[%clk 0:02:36]} 12. Be3 {[%clk 0:02:23]}  Nd7 {[%clk 0:02:27]} 13. Nd4 {[%clk 0:02:00]}  a6 {[%clk 0:02:16]} 14. Rfd1 {[%clk 0:01:56]}  Ne5 {[%clk 0:02:13]} 15. Qe2 {[%clk 0:01:56]}  Bd7 {[%clk 0:02:07]} 16. b3 {[%clk 0:01:42]}  b5 {[%clk 0:02:07]} 17. Nd5 {[%clk 0:01:23]}  bxc4 {[%clk 0:02:06]} 18. f4 {[%clk 0:01:22]}  Nd3 {[%clk 0:01:56]} 19. bxc4 {[%clk 0:01:20]}  Nc5 {[%clk 0:01:57]} 20. e5 {[%clk 0:01:11]}  Ba4 {[%clk 0:01:30]} 21. Rd2 {[%clk 0:00:59]}  Ne4 {[%clk 0:01:29]} 22. Rb2 {[%clk 0:00:57]}  dxe5 {[%clk 0:01:18]} 23. fxe5 {[%clk 0:00:57]}  Bxe5 {[%clk 0:01:18]} 24. Rb4 {[%clk 0:00:45]}  e6 {[%clk 0:01:13]} 25. Rxa4 {[%clk 0:00:41]}  exd5 {[%clk 0:01:11]} 26. cxd5 {[%clk 0:00:41]}  Nc3 {[%clk 0:01:10]} 27. Qxa6 {[%clk 0:00:38]}  Nxa4 {[%clk 0:01:09]} 28. Qxa4 {[%clk 0:00:39]}  Qxd5 {[%clk 0:01:09]} 29. Rd1 {[%clk 0:00:16]}  Rfd8 {[%clk 0:01:03]} 30. Qa7 {[%clk 0:00:12]}  Rc2 {[%clk 0:00:54]} 31. Rd2 {[%clk 0:00:03]}  Rxd2 {[%clk 0:00:53]} 0-1


[Site "https://www.chess.com"]